[Event "Late-Titled-Tuesday-Blitz-December-26-2023"]
[Site "Chess.com"]
[Date "2023.12.26"]
[Round "5"]
[White "Bala-Afiada"]
[Black "MFBerna"]
[Result "0-1"]
[WhiteElo "2024"]
[BlackElo "2381"]
[TimeControl "180+1"]
[EndTime "14:56:01 PST"]
[Termination "MFBerna won by resignation"]

1. d4 {[%clk 0:03:00.5]} 1... Nf6 {[%clk 0:02:59.1]} 2. c4 {[%clk 0:03:00.4]}
2... g6 {[%clk 0:02:57.6]} 3. Nc3 {[%clk 0:03:00.2]} 3... d5 {[%clk 0:02:57.8]}
4. cxd5 {[%clk 0:03:01.1]} 4... Nxd5 {[%clk 0:02:58.7]} 5. e4 {[%clk 0:03:01.8]}
5... Nxc3 {[%clk 0:02:58.9]} 6. bxc3 {[%clk 0:03:02.7]} 6... Bg7 {[%clk
0:02:59.1]} 7. Be3 {[%clk 0:03:03.3]} 7... O-O {[%clk 0:02:54.4]} 8. Bc4 {[%clk
0:03:03.9]} 8... c5 {[%clk 0:02:54]} 9. Ne2 {[%clk 0:03:04.3]} 9... Nc6 {[%clk
0:02:53.3]} 10. O-O {[%clk 0:03:03.6]} 10... b6 {[%clk 0:02:53.5]} 11. Rc1
{[%clk 0:02:59.1]} 11... Qc7 {[%clk 0:02:53.4]} 12. Bf4 {[%clk 0:02:46.4]} 12...
e5 {[%clk 0:02:52.4]} 13. Bg3 {[%clk 0:02:40.6]} 13... Bb7 {[%clk 0:02:49.9]}
14. d5 {[%clk 0:02:37.3]} 14... Na5 {[%clk 0:02:47.9]} 15. Bd3 {[%clk
0:02:35.5]} 15... f5 {[%clk 0:02:36.2]} 16. f3 {[%clk 0:02:28]} 16... c4 {[%clk
0:02:33.5]} 17. Bc2 {[%clk 0:02:25.6]} 17... Bc8 {[%clk 0:02:24]} 18. Kh1 {[%clk
0:02:16.6]} 18... Nb7 {[%clk 0:02:23.4]} 19. Ba4 {[%clk 0:01:45]} 19... Bd7
{[%clk 0:02:09.8]} 20. Bxd7 {[%clk 0:01:36.9]} 20... Qxd7 {[%clk 0:02:10.7]} 21.
Bf2 {[%clk 0:01:29.9]} 21... Nd6 {[%clk 0:02:10.2]} 22. Ng3 {[%clk 0:01:28]}
22... Bh6 {[%clk 0:02:00.8]} 23. Rc2 {[%clk 0:01:26.6]} 23... Bf4 {[%clk
0:01:59.4]} 24. Re2 {[%clk 0:01:18.1]} 24... Rac8 {[%clk 0:01:52.1]} 25. Rfe1
{[%clk 0:01:18.1]} 25... fxe4 {[%clk 0:01:36]} 26. fxe4 {[%clk 0:01:08.5]} 26...
h5 {[%clk 0:01:26.8]} 27. Nf1 {[%clk 0:01:03.9]} 27... Bh6 {[%clk 0:01:23.2]}
28. Be3 {[%clk 0:01:01.3]} 28... Bg7 {[%clk 0:01:07]} 29. Bg5 {[%clk 0:00:56.6]}
29... Rf7 {[%clk 0:01:01.1]} 30. Ng3 {[%clk 0:00:55.6]} 30... Qg4 {[%clk
0:00:59.8]} 31. Qd2 {[%clk 0:00:39.7]} 31... h4 {[%clk 0:00:51.7]} 32. Nf1
{[%clk 0:00:32.3]} 32... h3 {[%clk 0:00:51.9]} 33. Ng3 {[%clk 0:00:18.6]} 33...
Rcf8 {[%clk 0:00:49.6]} 34. Kg1 {[%clk 0:00:09.5]} 34... b5 {[%clk 0:00:44.3]}
35. Be3 {[%clk 0:00:08.1]} 35... Rc8 {[%clk 0:00:27.5]} 36. Rf2 {[%clk
0:00:07.6]} 36... Rxf2 {[%clk 0:00:27]} 37. Qxf2 {[%clk 0:00:07.9]} 37... Nxe4
{[%clk 0:00:19.3]} 38. Nxe4 {[%clk 0:00:07.9]} 38... Qxe4 {[%clk 0:00:20.2]} 39.
Bxa7 {[%clk 0:00:07.3]} 39... Qxd5 {[%clk 0:00:18.5]} 40. gxh3 {[%clk
0:00:06.4]} 40... Rf8 {[%clk 0:00:16.3]} 41. Qg2 {[%clk 0:00:05.9]} 41... Qd3
{[%clk 0:00:13]} 42. Bf2 {[%clk 0:00:03.1]} 42... Kh7 {[%clk 0:00:06.6]} 43. Qg4
{[%clk 0:00:03.5]} 43... Qc2 {[%clk 0:00:05.8]} 44. Rf1 {[%clk 0:00:02.5]} 44...
Qxc3 {[%clk 0:00:05.5]} 45. Qh4+ {[%clk 0:00:02.4]} 45... Kg8 {[%clk 0:00:05.9]}
46. Qg4 {[%clk 0:00:03]} 46... Qd3 {[%clk 0:00:06.3]} 47. Qe6+ {[%clk
0:00:03.1]} 47... Kh7 {[%clk 0:00:05.6]} 48. Qg4 {[%clk 0:00:02.5]} 48... Qf5
{[%clk 0:00:05.2]} 49. Qh4+ {[%clk 0:00:02.6]} 49... Kg8 {[%clk 0:00:05]} 50.
Qg3 {[%clk 0:00:03.2]} 50... e4 {[%clk 0:00:04.7]} 51. Qg2 {[%clk 0:00:03.9]}
51... Kh7 {[%clk 0:00:03.2]} 52. Be3 {[%clk 0:00:04.3]} 52... Qxf1+ {[%clk
0:00:02.8]} 53. Qxf1 {[%clk 0:00:04.8]} 53... Rxf1+ {[%clk 0:00:03.2]} 54. Kxf1
{[%clk 0:00:05.7]} 54... b4 {[%clk 0:00:02.6]} 55. Kf2 {[%clk 0:00:06.6]} 55...
b3 {[%clk 0:00:02.9]} 56. Ke2 {[%clk 0:00:07]} 56... bxa2 {[%clk 0:00:03.2]} 57.
Bd4 {[%clk 0:00:05.8]} 57... a1=Q {[%clk 0:00:04.1]} 58. Bxa1 {[%clk 0:00:05.3]}
58... Bxa1 {[%clk 0:00:05]} 59. Ke3 {[%clk 0:00:06.1]} 59... c3 {[%clk
0:00:03.9]} 60. Kxe4 {[%clk 0:00:07]} 60... c2 {[%clk 0:00:04.3]} 0-1

[Event "Late-Titled-Tuesday-Blitz-December-26-2023"]
[Site "Chess.com"]
[Date "2023.12.26"]
[Round "5"]
[White "Walter_White_Poland"]
[Black "Tunahan_Makaraci"]
[Result "0-1"]
[WhiteElo "2287"]
[BlackElo "2508"]
[TimeControl "180+1"]
[EndTime "14:56:10 PST"]
[Termination "Tunahan_Makaraci won by resignation"]

1. Nf3 {[%clk 0:03:00.9]} 1... Nf6 {[%clk 0:02:58.2]} 2. c4 {[%clk 0:02:59.4]}
2... e6 {[%clk 0:02:58.2]} 3. g3 {[%clk 0:02:59.1]} 3... d5 {[%clk 0:02:57.7]}
4. b3 {[%clk 0:02:59.2]} 4... c5 {[%clk 0:02:57.4]} 5. Bb2 {[%clk 0:02:58.8]}
5... Nc6 {[%clk 0:02:57.6]} 6. Bg2 {[%clk 0:02:58.4]} 6... b6 {[%clk 0:02:52.8]}
7. O-O {[%clk 0:02:57.5]} 7... Be7 {[%clk 0:02:52.7]} 8. e3 {[%clk 0:02:56.6]}
8... Bb7 {[%clk 0:02:51.9]} 9. Nc3 {[%clk 0:02:50.2]} 9... O-O {[%clk
0:02:51.4]} 10. cxd5 {[%clk 0:02:48.5]} 10... exd5 {[%clk 0:02:50.9]} 11. d4
{[%clk 0:02:47.1]} 11... Rc8 {[%clk 0:02:50.5]} 12. Ne2 {[%clk 0:02:43.7]} 12...
Ne4 {[%clk 0:02:49]} 13. Rc1 {[%clk 0:02:42.6]} 13... Bf6 {[%clk 0:02:46.7]} 14.
Nf4 {[%clk 0:02:36.1]} 14... g6 {[%clk 0:02:10.4]} 15. Ne5 {[%clk 0:02:13.6]}
15... Re8 {[%clk 0:02:04.1]} 16. f3 {[%clk 0:01:33.7]} 16... Ng5 {[%clk
0:01:43.1]} 17. Nfd3 {[%clk 0:01:22.3]} 17... Ne6 {[%clk 0:01:38.7]} 18. Nxc6
{[%clk 0:01:02.9]} 18... Rxc6 {[%clk 0:01:38.1]} 19. Ne5 {[%clk 0:01:00.2]}
19... Rc7 {[%clk 0:01:35.9]} 20. f4 {[%clk 0:00:57.4]} 20... cxd4 {[%clk
0:01:08.8]} 21. exd4 {[%clk 0:00:51.2]} 21... Rxc1 {[%clk 0:01:02.3]} 22. Qxc1
{[%clk 0:00:50.2]} 22... Qd6 {[%clk 0:01:02.9]} 23. Qd2 {[%clk 0:00:46.5]} 23...
Nf8 {[%clk 0:00:53.1]} 24. Rc1 {[%clk 0:00:45.3]} 24... Bg7 {[%clk 0:00:42.7]}
25. Rc2 {[%clk 0:00:44.5]} 25... f6 {[%clk 0:00:42.4]} 26. Nf3 {[%clk
0:00:44.3]} 26... Bc8 {[%clk 0:00:36.7]} 27. Qc3 {[%clk 0:00:41.1]} 27... Bf5
{[%clk 0:00:35.3]} 28. Rd2 {[%clk 0:00:39.2]} 28... Be4 {[%clk 0:00:35.5]} 29.
Qc1 {[%clk 0:00:27.3]} 29... h5 {[%clk 0:00:27.2]} 30. Ba3 {[%clk 0:00:26.7]}
30... Qd7 {[%clk 0:00:25.1]} 31. Bxf8 {[%clk 0:00:26.6]} 31... Bxf8 {[%clk
0:00:24.5]} 32. Rc2 {[%clk 0:00:26.5]} 32... Bxc2 {[%clk 0:00:22.8]} 33. Qxc2
{[%clk 0:00:27.4]} 33... Kg7 {[%clk 0:00:20.7]} 34. Nh4 {[%clk 0:00:26.9]} 34...
f5 {[%clk 0:00:14]} 35. Nf3 {[%clk 0:00:26.9]} 35... Re4 {[%clk 0:00:10.2]} 36.
Ne5 {[%clk 0:00:26.8]} 36... Qd6 {[%clk 0:00:05.2]} 37. Bxe4 {[%clk 0:00:26.6]}
37... dxe4 {[%clk 0:00:05.9]} 38. Qc3 {[%clk 0:00:25.5]} 38... Be7 {[%clk
0:00:05.5]} 39. d5 {[%clk 0:00:25.3]} 39... Bf6 {[%clk 0:00:05.6]} 40. Qd4
{[%clk 0:00:25.5]} 40... a5 {[%clk 0:00:04.6]} 41. Kf2 {[%clk 0:00:25.2]} 41...
g5 {[%clk 0:00:04.9]} 42. fxg5 {[%clk 0:00:23.7]} 42... Bxe5 {[%clk 0:00:04.9]}
43. Qc4 {[%clk 0:00:22.2]} 43... Qc5+ {[%clk 0:00:04.8]} 44. Qxc5 {[%clk
0:00:22]} 44... bxc5 {[%clk 0:00:05.7]} 45. Ke3 {[%clk 0:00:21.3]} 45... Kf7
{[%clk 0:00:05.6]} 46. Kf2 {[%clk 0:00:08.4]} 46... Kg6 {[%clk 0:00:04.6]} 47.
h4 {[%clk 0:00:08.1]} 47... Bd6 {[%clk 0:00:03]} 48. Kg2 {[%clk 0:00:05.9]}
48... f4 {[%clk 0:00:02.4]} 49. gxf4 {[%clk 0:00:05.4]} 49... Bxf4 {[%clk
0:00:03.3]} 50. Kh3 {[%clk 0:00:04.9]} 50... Kf7 {[%clk 0:00:03.7]} 51. Kg2
{[%clk 0:00:05]} 51... Ke7 {[%clk 0:00:04.2]} 52. Kf2 {[%clk 0:00:04.7]} 52...
Kd6 {[%clk 0:00:04.7]} 53. g6 {[%clk 0:00:04.7]} 53... Be5 {[%clk 0:00:05.1]}
54. Ke3 {[%clk 0:00:03.9]} 54... Kxd5 {[%clk 0:00:04.8]} 55. a3 {[%clk
0:00:03.4]} 55... Bg7 {[%clk 0:00:05.2]} 56. a4 {[%clk 0:00:02.3]} 56... c4
{[%clk 0:00:04.5]} 57. bxc4+ {[%clk 0:00:02]} 57... Kxc4 {[%clk 0:00:05.1]} 58.
Kxe4 {[%clk 0:00:02.9]} 58... Kb3 {[%clk 0:00:05.5]} 59. Kd5 {[%clk 0:00:03.5]}
59... Kxa4 {[%clk 0:00:06]} 60. Ke6 {[%clk 0:00:04.4]} 60... Kb3 {[%clk
0:00:06.4]} 61. Kf7 {[%clk 0:00:05.3]} 61... Bd4 {[%clk 0:00:06.1]} 62. g7
{[%clk 0:00:05.6]} 62... Bxg7 {[%clk 0:00:06.3]} 63. Kxg7 {[%clk 0:00:06.5]}
63... a4 {[%clk 0:00:07]} 64. Kg6 {[%clk 0:00:07.4]} 64... a3 {[%clk 0:00:07.9]}
65. Kh6 {[%clk 0:00:08.3]} 65... a2 {[%clk 0:00:08.8]} 66. Kxh5 {[%clk
0:00:08.7]} 66... a1=Q {[%clk 0:00:09.7]} 67. Kg6 {[%clk 0:00:09.1]} 67... Qh8
{[%clk 0:00:10.3]} 68. h5 {[%clk 0:00:10]} 68... Kc4 {[%clk 0:00:10.9]} 69. h6
{[%clk 0:00:10.5]} 69... Kd5 {[%clk 0:00:11.8]} 70. h7 {[%clk 0:00:10.5]} 70...
Ke6 {[%clk 0:00:12.7]} 71. Kh6 {[%clk 0:00:09.9]} 71... Kf6 {[%clk 0:00:13]} 72.
Kh5 {[%clk 0:00:10]} 72... Qxh7+ {[%clk 0:00:13.5]} 73. Kg4 {[%clk 0:00:10.9]}
73... Qe4+ {[%clk 0:00:13.5]} 0-1

[Event "Late-Titled-Tuesday-Blitz-December-26-2023"]
[Site "Chess.com"]
[Date "2023.12.26"]
[Round "5"]
[White "FontVella8"]
[Black "Statham_l3"]
[Result "1-0"]
[WhiteElo "2775"]
[BlackElo "2574"]
[TimeControl "180+1"]
[EndTime "14:56:12 PST"]
[Termination "FontVella8 won by checkmate"]

1. e4 {[%clk 0:02:57.6]} 1... e5 {[%clk 0:02:59.7]} 2. Nc3 {[%clk 0:02:55.5]}
2... Nf6 {[%clk 0:02:59.1]} 3. g3 {[%clk 0:02:56.2]} 3... Bc5 {[%clk 0:02:58.7]}
4. Bg2 {[%clk 0:02:56.5]} 4... d6 {[%clk 0:02:59.1]} 5. h3 {[%clk 0:02:53.9]}
5... Nc6 {[%clk 0:02:59.4]} 6. Nge2 {[%clk 0:02:53.1]} 6... h5 {[%clk
0:02:58.8]} 7. d3 {[%clk 0:02:52.4]} 7... h4 {[%clk 0:02:58.8]} 8. Na4 {[%clk
0:02:35.7]} 8... hxg3 {[%clk 0:02:50.8]} 9. fxg3 {[%clk 0:02:34.7]} 9... Be6
{[%clk 0:02:23.1]} 10. Nxc5 {[%clk 0:02:31.7]} 10... dxc5 {[%clk 0:02:24]} 11.
b3 {[%clk 0:02:24.8]} 11... Qd7 {[%clk 0:02:02.2]} 12. g4 {[%clk 0:02:22.2]}
12... O-O-O {[%clk 0:01:53.9]} 13. Ng3 {[%clk 0:02:13.6]} 13... Nd4 {[%clk
0:01:36.7]} 14. Bg5 {[%clk 0:02:05.5]} 14... Nxg4 {[%clk 0:01:10.4]} 15. hxg4
{[%clk 0:01:49.4]} 15... Rxh1+ {[%clk 0:00:54.2]} 16. Bxh1 {[%clk 0:01:48.6]}
16... Bxg4 {[%clk 0:00:51.3]} 17. Qd2 {[%clk 0:01:42.8]} 17... Rh8 {[%clk
0:00:51.3]} 18. Bg2 {[%clk 0:01:06.3]} 18... Rh2 {[%clk 0:00:46.6]} 19. Nf1
{[%clk 0:00:53.9]} 19... Rh5 {[%clk 0:00:16]} 20. Be3 {[%clk 0:00:48.9]} 20...
f5 {[%clk 0:00:11.3]} 21. Qf2 {[%clk 0:00:39.7]} 21... f4 {[%clk 0:00:06.3]} 22.
Bxd4 {[%clk 0:00:38.9]} 22... cxd4 {[%clk 0:00:07.2]} 23. Bf3 {[%clk 0:00:27.2]}
23... Bxf3 {[%clk 0:00:05.4]} 24. Qxf3 {[%clk 0:00:28.1]} 24... Rg5 {[%clk
0:00:06.2]} 25. O-O-O {[%clk 0:00:26.4]} 25... b5 {[%clk 0:00:06.7]} 26. Nd2
{[%clk 0:00:21.7]} 26... Qd6 {[%clk 0:00:06.9]} 27. Kb2 {[%clk 0:00:18.7]} 27...
a5 {[%clk 0:00:07.3]} 28. a3 {[%clk 0:00:18.2]} 28... Qc5 {[%clk 0:00:06.8]} 29.
Nb1 {[%clk 0:00:13.1]} 29... Kb7 {[%clk 0:00:06.6]} 30. Qh3 {[%clk 0:00:09.9]}
30... Rg3 {[%clk 0:00:06.2]} 31. Qh2 {[%clk 0:00:07.2]} 31... g5 {[%clk
0:00:04.8]} 32. Rg1 {[%clk 0:00:07.1]} 32... Re3 {[%clk 0:00:03.9]} 33. Rxg5
{[%clk 0:00:05.2]} 33... b4 {[%clk 0:00:03.3]} 34. a4 {[%clk 0:00:05]} 34... Kb6
{[%clk 0:00:02.4]} 35. Rg1 {[%clk 0:00:05.1]} 35... Kb7 {[%clk 0:00:02.9]} 36.
Qd2 {[%clk 0:00:04.4]} 36... f3 {[%clk 0:00:03]} 37. Re1 {[%clk 0:00:03]} 37...
Rxe1 {[%clk 0:00:03.2]} 38. Qxe1 {[%clk 0:00:03.9]} 38... Qf8 {[%clk 0:00:03.3]}
39. Qf2 {[%clk 0:00:04.3]} 39... Qf4 {[%clk 0:00:03.9]} 40. Nd2 {[%clk
0:00:04.7]} 40... Kb6 {[%clk 0:00:02.5]} 41. Nxf3 {[%clk 0:00:04.9]} 41... Kb7
{[%clk 0:00:02.9]} 42. Qe2 {[%clk 0:00:05.2]} 42... Qg4 {[%clk 0:00:03]} 43. Qf1
{[%clk 0:00:04.6]} 43... Qf4 {[%clk 0:00:03.3]} 44. Qe2 {[%clk 0:00:04.8]} 44...
Qf6 {[%clk 0:00:03.3]} 45. Nd2 {[%clk 0:00:04.1]} 45... Qf4 {[%clk 0:00:02.6]}
46. Nc4 {[%clk 0:00:04.5]} 46... Qg3 {[%clk 0:00:03]} 47. Nxa5+ {[%clk
0:00:04.2]} 47... Kb6 {[%clk 0:00:03.1]} 48. Nc4+ {[%clk 0:00:05]} 48... Kb7
{[%clk 0:00:02.7]} 49. Qh5 {[%clk 0:00:05.6]} 49... Qe1 {[%clk 0:00:02.7]} 50.
Qxe5 {[%clk 0:00:04.6]} 50... Qc3+ {[%clk 0:00:03.3]} 51. Kb1 {[%clk 0:00:04]}
51... Qe1+ {[%clk 0:00:03.4]} 52. Ka2 {[%clk 0:00:04.6]} 52... Qc1 {[%clk
0:00:01.6]} 53. Qxd4 {[%clk 0:00:03.4]} 53... Qxc2+ {[%clk 0:00:01.1]} 54. Qb2
{[%clk 0:00:03.9]} 54... Qxd3 {[%clk 0:00:01.6]} 55. e5 {[%clk 0:00:04.3]} 55...
Qd5 {[%clk 0:00:01.9]} 56. Qe2 {[%clk 0:00:03.5]} 56... Ka8 {[%clk 0:00:01.9]}
57. e6 {[%clk 0:00:03.4]} 57... Qd8 {[%clk 0:00:02.2]} 58. e7 {[%clk 0:00:03.9]}
58... Qe8 {[%clk 0:00:03.1]} 59. Qe6 {[%clk 0:00:03.9]} 59... Kb8 {[%clk
0:00:03.1]} 60. Qf6 {[%clk 0:00:04.4]} 60... Qd7 {[%clk 0:00:02.8]} 61. Qf8+
{[%clk 0:00:04.6]} 61... Kb7 {[%clk 0:00:03.2]} 62. e8=Q {[%clk 0:00:05.1]}
62... Qd3 {[%clk 0:00:03.3]} 63. Qa8# {[%clk 0:00:04.7]} 1-0

[Event "Late-Titled-Tuesday-Blitz-December-26-2023"]
[Site "Chess.com"]
[Date "2023.12.26"]
[Round "5"]
[White "micke12a"]
[Black "GMthekingindian"]
[Result "0-1"]
[WhiteElo "2401"]
[BlackElo "2317"]
[TimeControl "180+1"]
[EndTime "14:56:12 PST"]
[Termination "GMthekingindian won by resignation"]

1. d4 {[%clk 0:03:00.5]} 1... d5 {[%clk 0:02:59.1]} 2. Nc3 {[%clk 0:03:00]} 2...
e6 {[%clk 0:02:57.9]} 3. Bf4 {[%clk 0:03:00.3]} 3... c6 {[%clk 0:02:57.2]} 4.
Nf3 {[%clk 0:02:58.2]} 4... Nf6 {[%clk 0:02:57.1]} 5. e3 {[%clk 0:02:56.4]} 5...
Bb4 {[%clk 0:02:54.4]} 6. Bd3 {[%clk 0:02:54.8]} 6... Ne4 {[%clk 0:02:48.2]} 7.
Bxe4 {[%clk 0:02:50.7]} 7... dxe4 {[%clk 0:02:48.3]} 8. Nd2 {[%clk 0:02:49.1]}
8... f5 {[%clk 0:02:39.6]} 9. Qh5+ {[%clk 0:02:46.4]} 9... g6 {[%clk 0:02:38.9]}
10. Qh6 {[%clk 0:02:42.7]} 10... Bf8 {[%clk 0:02:33.5]} 11. Qh3 {[%clk
0:02:41.9]} 11... Bg7 {[%clk 0:02:29.3]} 12. f3 {[%clk 0:02:38.2]} 12... c5
{[%clk 0:02:15.3]} 13. dxc5 {[%clk 0:02:29.4]} 13... Qa5 {[%clk 0:01:53.1]} 14.
fxe4 {[%clk 0:02:23.8]} 14... Bxc3 {[%clk 0:01:50]} 15. bxc3 {[%clk 0:02:23.6]}
15... Qxc3 {[%clk 0:01:49.4]} 16. Rd1 {[%clk 0:02:16]} 16... O-O {[%clk
0:01:31.3]} 17. O-O {[%clk 0:02:08.5]} 17... e5 {[%clk 0:01:30.4]} 18. Bh6
{[%clk 0:02:07.9]} 18... Re8 {[%clk 0:01:12.7]} 19. exf5 {[%clk 0:02:06.3]}
19... Nc6 {[%clk 0:01:01.8]} 20. f6 {[%clk 0:02:00.8]} 20... Bxh3 {[%clk
0:00:56.2]} 21. f7+ {[%clk 0:02:00.4]} 21... Kh8 {[%clk 0:00:56.5]} 22. fxe8=Q+
{[%clk 0:01:44.1]} 22... Rxe8 {[%clk 0:00:57.4]} 23. gxh3 {[%clk 0:01:34]} 23...
g5 {[%clk 0:00:34.9]} 24. Bxg5 {[%clk 0:01:27.1]} 24... Rg8 {[%clk 0:00:34.4]}
25. h4 {[%clk 0:00:56.3]} 25... h6 {[%clk 0:00:33.7]} 26. Kh1 {[%clk 0:00:46.8]}
26... hxg5 {[%clk 0:00:32.9]} 27. hxg5 {[%clk 0:00:47.5]} 27... Qxe3 {[%clk
0:00:30.1]} 28. Nf3 {[%clk 0:00:42.1]} 28... Nd4 {[%clk 0:00:27.5]} 29. Rde1
{[%clk 0:00:34.7]} 29... Qxf3+ {[%clk 0:00:19.2]} 30. Rxf3 {[%clk 0:00:33.3]}
30... Nxf3 {[%clk 0:00:20.1]} 31. Re3 {[%clk 0:00:33.4]} 31... Rf8 {[%clk
0:00:19.9]} 32. Kg2 {[%clk 0:00:33.3]} 32... Nxg5 {[%clk 0:00:19]} 33. Rxe5
{[%clk 0:00:32.4]} 33... Nf7 {[%clk 0:00:18.5]} 34. Re7 {[%clk 0:00:32.1]} 34...
Nd8 {[%clk 0:00:17.1]} 35. Rd7 {[%clk 0:00:28.6]} 35... Kg8 {[%clk 0:00:15]} 36.
Kg3 {[%clk 0:00:27.3]} 36... a6 {[%clk 0:00:14.5]} 37. h4 {[%clk 0:00:25.7]}
37... Re8 {[%clk 0:00:14.6]} 38. Kg4 {[%clk 0:00:19.6]} 38... Nf7 {[%clk
0:00:13.6]} 39. Rxb7 {[%clk 0:00:18.3]} 39... Ne5+ {[%clk 0:00:14.1]} 40. Kf5
{[%clk 0:00:18.5]} 40... Nc6 {[%clk 0:00:13.2]} 41. Rb6 {[%clk 0:00:17.7]} 41...
Nd4+ {[%clk 0:00:13.3]} 42. Kg6 {[%clk 0:00:17.7]} 42... a5 {[%clk 0:00:13.4]}
43. c3 {[%clk 0:00:12.8]} 43... Nf3 {[%clk 0:00:10.5]} 44. h5 {[%clk 0:00:12.2]}
44... Ne5+ {[%clk 0:00:10.7]} 45. Kf5 {[%clk 0:00:12.6]} 45... Nd3 {[%clk
0:00:10.7]} 46. c6 {[%clk 0:00:12.2]} 46... Rc8 {[%clk 0:00:10.1]} 47. Kg6
{[%clk 0:00:10]} 47... Ne5+ {[%clk 0:00:09.2]} 48. Kf5 {[%clk 0:00:09.1]} 48...
Nxc6 {[%clk 0:00:10.1]} 49. h6 {[%clk 0:00:09.3]} 49... Ne7+ {[%clk 0:00:10.4]}
50. Ke6 {[%clk 0:00:08.5]} 50... Ng6 {[%clk 0:00:08]} 51. Kf6 {[%clk 0:00:06.7]}
51... Nf8 {[%clk 0:00:07.5]} 52. Ra6 {[%clk 0:00:05.6]} 52... Rc5 {[%clk
0:00:05.5]} 53. Ra8 {[%clk 0:00:03.6]} 53... Rh5 {[%clk 0:00:05.6]} 54. h7+
{[%clk 0:00:02.3]} 54... Rxh7 {[%clk 0:00:05.9]} 55. Rxa5 {[%clk 0:00:02.1]}
55... Rh6+ {[%clk 0:00:06.3]} 56. Kg5 {[%clk 0:00:02.2]} 56... Rc6 {[%clk
0:00:06.9]} 57. Kf5 {[%clk 0:00:02.4]} 57... Kf7 {[%clk 0:00:07.1]} 58. Ra7+
{[%clk 0:00:02]} 58... Ke8 {[%clk 0:00:07.5]} 59. Ra5 {[%clk 0:00:02.2]} 59...
Nd7 {[%clk 0:00:07.7]} 60. Rd5 {[%clk 0:00:02.5]} 60... Ke7 {[%clk 0:00:08]} 61.
Rd3 {[%clk 0:00:02.5]} 61... Nc5 {[%clk 0:00:06.9]} 62. Re3+ {[%clk 0:00:02.9]}
62... Kd6 {[%clk 0:00:07.1]} 63. Kf4 {[%clk 0:00:03.8]} 63... Kd5 {[%clk
0:00:07.1]} 64. Re1 {[%clk 0:00:03.7]} 64... Kc4 {[%clk 0:00:07.6]} 65. Re5
{[%clk 0:00:03.6]} 65... Nd3+ {[%clk 0:00:07.7]} 66. Kf5 {[%clk 0:00:03.9]}
66... Nxe5 {[%clk 0:00:08.6]} 67. Kxe5 {[%clk 0:00:04.6]} 67... Rc5+ {[%clk
0:00:09.1]} 68. Kd6 {[%clk 0:00:04.7]} 68... Ra5 {[%clk 0:00:10]} 69. Kc6 {[%clk
0:00:05.2]} 69... Rxa2 {[%clk 0:00:10.9]} 70. Kd6 {[%clk 0:00:05.9]} 70... Kxc3
{[%clk 0:00:11.8]} 0-1